fUSD/lending_fUSD_20240421
["ID","MTS","AMOUNT","RATE_DAILY","PERIOD"]
[323152367,1713725432416,-1374.93018923,0.00012638,2]
[323152368,1713725432426,-601.0,0.0001264,2]
[323152369,1713725432435,-150.0,0.00012767,2]
[323152370,1713725432444,-641.67501925,0.00012798,2]
[323152371,1713725432455,-6.07298075,0.00012798,2]
[323152372,1713725432465,-738.1012,0.00012798,2]
[323152373,1713725432474,-57.2186944,0.00012798,2]
[323152387,1713725432793,-432.39441523,0.00012798,2]
[323152390,1713725432805,-1084.00000008,0.00012798,2]
[323152392,1713725432816,-496.701815,0.00012798,2]
[323152394,1713725432828,-429.68507529,0.00012798,2]
[323152396,1713725432837,-150.0,0.00012831,2]
[323152398,1713725432849,-834.33120654,0.00012832,2]
[323152400,1713725432929,-2023.98016469,0.00012832,2]
[323152401,1713725432938,-499.99,0.0001287,2]
[323152402,1713725432948,-383.59,0.0001287,2]
[323152403,1713725432957,-622.90552,0.0001287,2]
[323152404,1713725432967,-622.90552,0.0001287,2]
[323152405,1713725432976,-622.90552,0.0001287,2]
[323152406,1713725432986,-8986.52052507,0.00012888,2]
[323152407,1713725432995,-363.06901353,0.00012896,2]
[323152408,1713725433004,-157.17390177,0.00012896,2]
[323152409,1713725433014,-967.19043138,0.00012896,2]
[323152410,1713725433023,-2214.46523298,0.00012896,2]
[323152411,1713725433033,-2181.95055224,0.00012896,2]
[323152412,1713725433042,-201.58196262,0.00012896,2]
[323152413,1713725433052,-523.73285481,0.00012896,2]
[323152414,1713725433061,-158.62060924,0.00012896,2]
[323152415,1713725433071,-500.0,0.00012896,2]
[323152416,1713725433081,-117770.04086767,0.00012898,2]
[323152418,1713725433093,-395342.63247347,0.00012898,2]
[323152421,1713725433115,-32997.41165845,0.00012898,2]
[323152423,1713725433124,-16939.10386204,0.00012899,2]
[323152425,1713725433136,-32713.99002,0.00012899,2]
[323152427,1713725433147,-14858.499992,0.00012899,2]
[323152430,1713725433161,-398.36837044,0.00012899,2]
[323152432,1713725433173,-929.0145636,0.00012899,2]
[323152436,1713725433198,-13145.90893966,0.00012899,2]
[323152442,1713725433243,-1393.02296755,0.00012899,2]
[323152446,1713725433270,-129422.44621004,0.00012899,2]
[323152448,1713725433281,-20359.43051549,0.00012899,2]
[323152450,1713725433293,-1440.00014,0.00012899,2]
[323152478,1713725438342,-13400.21441918,0.00012899,2]
[323152480,1713725438352,-3315.55080566,0.00012899,2]
[323152483,1713725438364,-1145.51673181,0.00012899,2]
[323152500,1713725438604,-10008.46869408,0.00012899,2]
[323152501,1713725438616,-5994.33108,0.00012899,2]
[323152502,1713725438629,-6607.99999461,0.00012899,2]
[323152503,1713725438641,-13344.577824,0.00012899,2]
[323152504,1713725438654,-18577.97442883,0.00012899,2]
[323152505,1713725438676,-283.04655715,0.00012899,2]
[323152506,1713725438690,-2268.25408316,0.00012899,2]
[323152508,1713725438702,-4497.52000001,0.00012899,2]
[323152510,1713725438714,-356.967728,0.00012899,2]
[323152511,1713725438811,-33599.79207269,0.00012899,2]
[323152512,1713725438822,-10000.0,0.000129,2]
[323152513,1713725438831,-165.93701521,0.000129,2]
[323152514,1713725438841,-445.56967842,0.00012996,2]
[323152515,1713725438894,-1276.73780675,0.00012996,2]
[323152516,1713725438905,-734.05413683,0.00012996,2]
[323152517,1713725438917,-1010.00720521,0.00012996,2]
[323152518,1713725438927,-192.56707976,0.00012997,2]
[323152519,1713725438936,-595.1774561,0.00012997,2]
[323152520,1713725438946,-2208.95199503,0.00012998,2]
[323152521,1713725438968,-2305.90600143,0.00012998,2]
[323152522,1713725438977,-12016.58,0.00012999,2]
[323152523,1713725438987,-2998.8492905,0.00012999,2]
[323152524,1713725438996,-1993.92102893,0.00012999,2]
[323152525,1713725439006,-19926.1696034,0.00013,2]
[323152526,1713725439018,-849.25322051,0.00013,2]
[323152527,1713725439031,-679.48173823,0.00013,2]
[323152528,1713725439042,-1929.53141016,0.00013,2]
[323152529,1713725439054,-5582.52338136,0.00013,2]
[323152530,1713725439065,-414.0606176,0.00013,2]
[323152531,1713725439077,-4148.95164006,0.00013,2]
[323152532,1713725439089,-5451.418644,0.00013,2]
[323152533,1713725439104,-2596.15539632,0.00013,2]
[323152534,1713725439168,-9320490.49124247,0.00013,2]
[323152535,1713725439179,-389080.50861858,0.00013,2]
[323152536,1713725439188,-62190.35996847,0.00013,2]
[323152537,1713725439198,-5015.47958164,0.00013,2]
[323152538,1713725439208,-622.90551,0.00013,2]
[323152539,1713725439217,-622.90552,0.00013,2]
[323152540,1713725439228,-622.90552,0.00013,2]
[323152541,1713725439237,-164.4,0.0001301,2]
[323152542,1713725439248,-500.0,0.00013425,2]
[323152543,1713725439257,-172.93,0.00013464,2]
[323152544,1713725439267,-150.0,0.00013617,2]
[323152545,1713725439276,-328.0,0.00013618,2]
[323152546,1713725439285,-216.09,0.00013656,2]
[323152547,1713725439294,-150.0,0.00013672,2]
[323152548,1713725439303,-500.0,0.00013699,2]
[323152549,1713725439312,-516.488393,0.00013699,2]
[323152550,1713725439321,-500.0,0.00013699,2]
[323152551,1713725439331,-6187.81,0.00013699,2]
[323152552,1713725439341,-2751.0,0.00013699,2]
[323152553,1713725439352,-8589.98,0.00013699,2]
[323152554,1713725439362,-161.35,0.00013699,2]
[323152555,1713725439372,-1500.0,0.00013699,2]
[323152556,1713725439383,-200.0,0.00013699,2]
[323152557,1713725439394,-1153.97,0.00013699,2]
[323152558,1713725439404,-300.0,0.00013699,2]
[323152559,1713725439414,-300.0,0.00013699,2]
[323152560,1713725439423,-300.0,0.00013699,2]
[323152561,1713725439432,-250.0,0.000137,2]
[323152562,1713725439441,-371.79860069,0.000137,2]
[323152563,1713725439451,-1250.0,0.000137,2]
[323152564,1713725439461,-800.0,0.00013973,2]
[323152565,1713725439470,-800.0,0.00013973,2]
[323152566,1713725439479,-10000.0,0.00013973,2]
[323152567,1713725439489,-408.81570655,0.00014,2]
[323152568,1713725439498,-1055.41,0.00014,2]
[323152569,1713725439508,-151.35,0.00014,2]
[323152570,1713725439517,-151.35,0.00014,2]
[323152571,1713725439528,-151.35,0.00014,2]
[323152572,1713725439538,-151.35,0.00014,2]
[323152573,1713725439549,-151.35,0.00014,2]
[323152574,1713725439559,-151.35,0.00014,2]
[323152575,1713725439569,-151.35,0.00014,2]
[323152576,1713725439578,-151.35,0.00014,2]
[323152577,1713725439588,-151.35,0.00014,2]
[323152578,1713725439597,-151.35,0.00014,2]
[323152579,1713725439607,-151.35,0.00014,2]
[323152580,1713725439616,-151.35,0.00014,2]
[323152581,1713725439629,-151.35,0.00014,2]
[323152582,1713725439639,-151.35,0.00014,2]
[323152583,1713725439648,-151.35,0.00014,2]
[323152584,1713725439657,-151.35,0.00014,2]
[323152585,1713725439667,-151.35,0.00014,2]
[323152586,1713725439676,-151.35,0.00014,2]
[323152587,1713725439685,-151.35,0.00014,2]
[323152588,1713725439694,-151.35,0.00014,2]
[323152589,1713725439704,-151.35,0.00014,2]
[323152590,1713725439714,-151.35,0.00014,2]
[323152591,1713725439724,-151.35,0.00014,2]
[323152592,1713725439733,-151.35,0.00014,2]
[323152593,1713725439742,-151.35,0.00014,2]
[323152594,1713725439752,-151.35,0.00014,2]
[323152595,1713725439762,-151.35,0.00014,2]
[323152596,1713725439771,-151.35,0.00014,2]
[323152597,1713725439780,-151.35,0.00014,2]
[323152598,1713725439790,-151.35,0.00014,2]
[323152599,1713725439799,-151.35,0.00014,2]
[323152600,1713725439809,-151.35,0.00014,2]
[323152601,1713725439819,-151.35,0.00014,2]
[323152602,1713725439828,-151.35,0.00014,2]
[323152603,1713725439838,-151.35,0.00014,2]
[323152604,1713725439847,-151.35,0.00014,2]
[323152605,1713725439857,-151.35,0.00014,2]
[323152606,1713725439866,-151.35,0.00014,2]
[323152607,1713725439876,-840.0,0.00014026,2]
[323152608,1713725439885,-200.0,0.00014033,2]
[323152609,1713725439895,-500.0,0.00014033,2]
[323152610,1713725439906,-816.0,0.00014046,2]
[323152611,1713725439915,-210.0,0.00014114,2]
[323152612,1713725439924,-165.93701521,0.0001415,2]
[323152613,1713725439933,-500.0,0.0001418,2]
[323152614,1713725439943,-1700.0,0.0001418,2]
[323152615,1713725439952,-522.01992354,0.0001418,2]
[323152616,1713725439962,-172.93,0.00014416,2]
[323152617,1713725439971,-223.426263,0.00014521,2]
[323152618,1713725439981,-200.0,0.00014601,2]
[323152619,1713725439993,-1000.0,0.00014601,2]
[323152620,1713725440003,-500.0,0.00014601,2]
[323152621,1713725440013,-500.0,0.00014601,2]
[323152622,1713725440023,-200.0,0.00014601,2]
[323152623,1713725440032,-161.35,0.00014612,2]
[323152624,1713725440042,-10000.0,0.00014806,2]
[323152625,1713725440051,-991.19,0.00014834,2]
[323152626,1713725440061,-1835.35,0.0001489,2]
[323152627,1713725440070,-300.0,0.00014999,2]
[323152628,1713725440079,-4471.07332198,0.00015,2]
[323152629,1713725440088,-155.0,0.00015,2]
[323152630,1713725440097,-652.0,0.00015,2]
[323152631,1713725440107,-20000.0,0.00015,2]
[323152632,1713725440117,-59351.50605825,0.00015,2]
[323152633,1713725440126,-1861.0,0.00015,2]
[323152634,1713725440136,-750.0,0.00015,2]
[323152635,1713725440145,-720318.09984083,0.00015,2]
[323152637,1713725440518,-597.75696942,0.00015,2]
[323152638,1713725440543,-3051.81140675,0.00015,2]
[323152639,1713725440555,-306.29837349,0.00015,2]
[323152640,1713725440566,-607.21348402,0.00015,2]
[323152641,1713725440605,-4316.5918931,0.00015,2]
[323152642,1713725440727,-349.62275878,0.00015,2]
[323152643,1713725440796,-33205.80003,0.00015,2]
[323152644,1713725440808,-265.1286,0.00015,2]
[323152645,1713725440820,-7821.01570482,0.00015,2]
[323152646,1713725440831,-747.15920946,0.00015,2]
[323152647,1713725440843,-425.6559996,0.00015,2]
[323152648,1713725440921,-531.14237959,0.00015,2]
[323152657,1713725443343,-741.0,0.00014379,2]
[323152658,1713725443353,-500.0,0.00014401,2]
[323152659,1713725443363,-1014.72296,0.00014502,2]
[323152660,1713725443392,-464.03,0.00014502,2]
[323152661,1713725443403,-257.6113327,0.00014502,2]
[323152662,1713725443504,-3466.36882721,0.00014502,2]
[323152663,1713725443516,-481.2146,0.00014502,2]
[323152664,1713725443528,-987.596933,0.00014502,2]
[323152665,1713725443559,-3328.45534709,0.00014502,2]
[323152666,1713725443568,-70709.89930996,0.00015,2]
[323152667,1713725443579,-2972.24117304,0.00015,2]
[323152668,1713725443623,-1995.44967921,0.00015,2]
[323152729,1713725734786,248.02572689,0.00016438,10]
[323152730,1713725779926,306.35,0.0001611,10]
[323152731,1713725868291,935.17,0.00011259,2]
[323152732,1713726121443,25906.2596055,0.00011259,2]
[323152733,1713726161948,17270.839737,0.00011259,2]
[323152734,1713726177993,14392.3664475,0.00011259,2]
[323152735,1713726197957,14392.3664475,0.00011259,2]
[323152736,1713726215951,7498.42291915,0.00011259,2]
[323152737,1713726233951,7498.42291915,0.00011259,2]
[323152738,1713726254050,7498.42291915,0.00011259,2]
[323152739,1713726268305,287.2,0.0001611,10]
[323152740,1713726269985,7498.42291915,0.00011259,2]
[323152741,1713726292056,7498.42291915,0.00011259,2]
[323152748,1713726308778,1693.34,0.00012505,2]
[323152749,1713726310499,7498.42291915,0.00011259,2]
[323152750,1713726311309,19876.37,0.00012551,2]
[323152751,1713726332394,7498.42291915,0.00011259,2]
[323152752,1713726350007,7498.42291915,0.00011259,2]
[323152754,1713726368031,7498.42291915,0.00011259,2]
[323152755,1713726388006,4476.02596517,0.00011259,2]
[323152756,1713726406695,888.41,0.00010678,2]
[323152757,1713726459055,159.35735999,0.00012572,2]
[323152758,1713726508646,1000.0,0.00012448,2]
[323152760,1713726561901,2030.08,0.00012491,2]
[323152772,1713726631508,-3069.7602,0.00012623,2]
[323152781,1713726631563,-260.4898,0.00012623,2]
[323152783,1713726631572,-159.35735997,0.00012635,2]
[323152784,1713726631581,-1783.86045865,0.00012672,2]
[323152785,1713726631590,-1179.58,0.00012673,2]
[323152786,1713726631608,-1000.0,0.00012697,2]
[323152787,1713726631620,-159.35735997,0.00012698,2]
[323152788,1713726631629,-524.96673129,0.00012795,2]
[323152789,1713726631638,-150.0,0.00012795,2]
[323152790,1713726631648,-6715.37165012,0.00012796,2]
[323152791,1713726631668,-340.13558781,0.00012796,2]
[323152792,1713726631731,-4000.0,0.00012796,2]
[323152808,1713726637781,-51134.85273054,0.00012796,2]
[323152809,1713726637796,-546110.08499959,0.00012797,2]
[323152810,1713726637809,-245000.0,0.00012798,2]
[323152811,1713726637823,-10000.0,0.000129,2]
[323152812,1713726637836,-499.99,0.000129,2]
[323152813,1713726637850,-250.0,0.00012921,2]
[323152814,1713726637864,-7524.71943962,0.00012927,2]
[323152815,1713726637878,-331.87403042,0.00012927,2]
[323152816,1713726637890,-888.41,0.00012942,2]
[323152817,1713726637904,-150.0,0.00012977,2]
[323152818,1713726637917,-470691.35864157,0.00013,2]
[323152821,1713726639699,-570.03242,0.00013,2]
[323152822,1713726639826,-12394.0186404,0.00013,2]
[323152823,1713726639933,-333.81892786,0.00013,2]
[323152824,1713726639945,-506.10662483,0.00013,2]
[323152825,1713726639988,-1948.41385644,0.00013,2]
[323152826,1713726640001,-596.73899996,0.00013,2]
[323152838,1713726642576,-688.38156469,0.00013,2]
[323152839,1713726642726,-2186.37961417,0.00013,2]
[323152840,1713726642780,-3823.79433459,0.00013,2]
[323152844,1713726645591,-553.87009816,0.00012999,2]
[323152845,1713726645666,-413.32033322,0.00012999,2]
[323152846,1713726645675,-14339.04085911,0.00013,2]
[323152847,1713726645751,-900.8999995,0.00013,2]
[323152848,1713726645763,-682.68673074,0.00013,2]
[323152849,1713726645804,-300.0,0.00013,2]
[323152850,1713726652807,400.0,0.000121,4]
[323152851,1713726654617,800.0,0.000122,4]
[323152852,1713726656745,1200.0,0.000123,4]
[323152853,1713726658863,1700.0,0.000124,4]
[323152854,1713726660989,2100.0,0.000125,4]
[323152856,1713726663311,400.0,0.000126,4]
[323152857,1713726674931,2330.21650424,0.00012348,2]
[323152858,1713726718045,192.19,0.00012479,2]
[323152860,1713726739149,499.6,0.00012354,2]
[323152861,1713726743849,269.25,0.0001611,10]
[323152862,1713726755227,250.0,0.00012352,2]
[323152863,1713726775071,2294.07,0.00012352,2]
[323152864,1713726778029,4986.02,0.00012352,2]
[323152865,1713726787317,23844.47,0.000123,2]
[323152866,1713726867887,830.17,0.0001225,2]
[323152867,1713726875566,2461.98,0.0001225,2]
[323152868,1713726916089,1587.83,0.00012248,2]
[323152869,1713726916319,200.0,0.00012291,2]
[323152870,1713726930872,706.68302737,0.00012251,2]
[323152871,1713726931873,1819.0,0.00012293,3]
[323152873,1713726968653,216.57,0.00012144,2]
[323152879,1713727012228,-206.72764411,0.00012676,2]
[323152880,1713727012251,-515.64276373,0.00012676,2]
[323152881,1713727012275,-363.68897352,0.00012676,2]
[323152882,1713727012298,-565.28112951,0.00012677,2]
[323152883,1713727012322,-523.86545643,0.00012678,2]
[323152884,1713727012345,-2215.04376637,0.00012678,2]
[323152885,1713727012369,-5545.18226245,0.00012679,2]
[323152886,1713727012391,-1783.86045865,0.0001268,2]
[323152887,1713727012414,-2680.70754523,0.00012681,2]
[323152888,1713727014366,-400.0,0.000127,4]
[323152889,1713727014387,-400.0,0.000128,4]
[323152890,1713727014407,-400.0,0.000129,4]
[323152891,1713727029536,1825.05,0.00012349,2]
[323152892,1713727034375,-328.0,0.00012679,2]
[323152893,1713727044124,949.02,0.00010418,2]
[323152894,1713727058198,2050.98,0.00012587,2]
[323152895,1713727058221,3328.0,0.00012587,2]
[323152896,1713727058243,6132.2343,0.00012587,2]
[323152897,1713727061972,-10000.0,0.0001268,2]
[323152898,1713727065530,-10000.0,0.0001268,2]
[323152899,1713727068514,-10000.0,0.0001268,2]
[323152900,1713727070856,-10000.0,0.0001268,2]
[323152901,1713727073126,-10000.0,0.0001268,2]
[323152902,1713727075765,-10000.0,0.0001268,2]
[323152903,1713727093684,-565.28112951,0.00012679,2]
[323152904,1713727093704,-523.86545643,0.00012679,2]
[323152905,1713727093729,-2190.35996847,0.0001268,2]
[323152906,1713727093752,-949.02,0.00012682,2]
[323152907,1713727093773,-3080.15233842,0.00012685,2]
[323152908,1713727093792,-500.0,0.00012697,2]
[323152909,1713727093812,-150.0,0.00012768,2]
[323152910,1713727093832,-150.0,0.00012794,2]
[323152911,1713727093852,-150.0,0.00012794,2]
[323152912,1713727093872,-300.0,0.00012794,2]
[323152913,1713727093892,-206.41547538,0.00012795,2]
[323152914,1713727093914,-363.27487378,0.00012795,2]
[323152915,1713727093937,-871.63075801,0.00012796,2]
[323152916,1713727096268,-2728.81528849,0.00012796,2]
[323152917,1713727096288,-515.22011756,0.00012796,2]
[323152918,1713727096310,-1231.52971374,0.00012796,2]
[323152919,1713727096331,-5524.43488021,0.00012797,2]
[323152920,1713727098359,-10000.0,0.00012797,2]
[323152921,1713727100191,-10000.0,0.00012797,2]
[323152922,1713727101512,-10000.0,0.00012797,2]
[323152923,1713727103049,-10000.0,0.00012797,2]
[323152924,1713727104345,-10000.0,0.00012797,2]
[323152925,1713727105788,-10000.0,0.00012797,2]
[323152926,1713727107103,-10000.0,0.00012797,2]
[323152927,1713727108596,-10000.0,0.00012797,2]
[323152928,1713727110440,-10000.0,0.00012797,2]
[323152929,1713727111799,-10000.0,0.00012796,2]
[323152930,1713727113544,-10000.0,0.00012796,2]
[323152931,1713727115255,-10000.0,0.00012796,2]
[323152932,1713727117784,-10000.0,0.00012796,2]
[323152933,1713727129319,-3200.0,0.00012796,2]
[323152934,1713727141224,1000.0,0.00012553,2]
[323152935,1713727156284,1138.47,0.0001254,2]
[323152936,1713727221304,120.65854496,0.0001198,2]
[323152937,1713727221330,29.34145504,0.0001198,2]
[323152938,1713727225054,180.43,0.00011994,2]
[323152939,1713727230494,252.42,0.0001611,10]
[323152940,1713727242464,250.0,0.0001197,2]
[323152942,1713727319338,4789.46,0.00011939,2]
[323152943,1713727329158,1800.0,0.00027,120]
[323152944,1713727373783,2599.06,0.00011939,2]
[323152945,1713727419355,155.54815529,0.00011935,2]
[323152947,1713727582330,854.11,0.00010005,2]
[323152948,1713727634540,165.26,0.00011908,2]
[323152949,1713727693144,4025.01447134,0.0001,2]
[323152950,1713727708661,4025.01447134,0.0001,2]
[323152951,1713727714808,-252.63996803,0.00012022,2]
[323152952,1713727715333,-242.27867695,0.00012022,2]
[323152953,1713727728649,3354.17872612,0.0001,2]
[323152954,1713727739048,-28.94681145,0.00012022,2]
[323152955,1713727739067,-121.05318855,0.00012022,2]
[323152956,1713727739879,-150.0,0.00012022,2]
[323152957,1713727740643,-150.0,0.00012022,2]
[323152958,1713727741578,-150.0,0.00012022,2]
[323152959,1713727742005,-150.0,0.00012022,2]
[323152960,1713727742415,-150.0,0.00012022,2]
[323152961,1713727742904,-150.0,0.00012022,2]
[323152962,1713727743554,-150.0,0.00012022,2]
[323152963,1713727744399,-150.0,0.00012022,2]
[323152964,1713727744802,-150.0,0.00012022,2]
[323152965,1713727745278,-150.0,0.00012022,2]
[323152966,1713727747326,3354.17872612,0.0001,2]
[323152967,1713727758199,-150.0,0.00012022,2]
[323152968,1713727759330,-150.0,0.00012022,2]
[323152969,1713727759733,-150.0,0.00012022,2]
[323152970,1713727760203,-150.0,0.00012022,2]
[323152971,1713727760916,-150.0,0.00012022,2]
[323152972,1713727761343,-150.0,0.00012022,2]
[323152973,1713727761690,7339.8708047,0.00012021,2]
[323152974,1713727761814,-150.0,0.00012022,2]
[323152975,1713727762405,-150.0,0.00012022,2]
[323152976,1713727763143,-150.0,0.00012022,2]
[323152977,1713727763751,-109.09914987,0.00012022,2]
[323152978,1713727764673,40.90085013,0.0001,2]
[323152979,1713727764693,1706.62626618,0.0001,2]
[323152980,1713727787909,1747.52711631,0.0001,2]
[323152981,1713727807325,1747.52711631,0.0001,2]
[323152982,1713727819892,1747.52711631,0.0001,2]
[323152984,1713727831814,-532.73112667,0.00012023,2]
[323152985,1713727831824,-1342.37632069,0.00012035,2]
[323152986,1713727831836,-996.72367931,0.00012035,2]
[323152987,1713727831845,-167.7,0.00012075,2]
[323152988,1713727831855,-167.7,0.00012108,2]
[323152989,1713727831865,-167.7,0.00012142,2]
[323152990,1713727831874,-167.7,0.00012175,2]
[323152991,1713727831883,-34.17632115,0.00012208,2]
[323152992,1713727831896,-133.52367885,0.00012208,2]
[323152993,1713727831905,-167.7,0.00012241,2]
[323152994,1713727831915,-91.07471865,0.00012269,2]
[323152995,1713727831938,-763.03528135,0.00012269,2]
[323152996,1713727831949,-167.7,0.00012274,2]
[323152997,1713727831960,-167.7,0.00012307,2]
[323152998,1713727831969,-167.7,0.0001234,2]
[323152999,1713727831979,-167.7,0.00012373,2]
[323153000,1713727831988,-167.7,0.00012407,2]
[323153001,1713727831998,-167.7,0.0001244,2]
[323153002,1713727832008,-167.7,0.00012473,2]
[323153003,1713727832017,-167.7,0.00012506,2]
[323153004,1713727832027,-167.7,0.00012539,2]
[323153005,1713727832036,-167.7,0.00012572,2]
[323153006,1713727832046,-167.7,0.00012605,2]
[323153007,1713727832056,-167.7,0.00012638,2]
[323153008,1713727832065,-167.7,0.00012672,2]
[323153009,1713727832075,-500.0,0.00012697,2]
[323153010,1713727832086,-150.0,0.00012698,2]
[323153011,1713727832096,-5115.79418159,0.00012698,2]
[323153013,1713727832131,-1162.26223792,0.00012698,2]
[323153015,1713727832143,-16074.95771348,0.00012698,2]
[323153019,1713727832170,-13069.82393651,0.00012698,2]
[323153026,1713727832205,-281.63428196,0.00012698,2]
[323153029,1713727832216,-2213.91868258,0.00012698,2]
[323153030,1713727832228,-3854.0400004,0.00012698,2]
[323153031,1713727832239,-2498.078602,0.00012698,2]
[323153033,1713727832252,-342.93404351,0.00012698,2]
[323153034,1713727832298,-453.8017512,0.00012698,2]
[323153035,1713727832309,-1047.42676983,0.00012698,2]
[323153036,1713727832322,-634.89426,0.00012698,2]
[323153037,1713727832335,-3086.40000001,0.00012698,2]
[323153038,1713727832347,-544.37674792,0.00012698,2]
[323153039,1713727832360,-11810.01675956,0.00012698,2]
[323153040,1713727832370,-22349.18980601,0.00012699,2]
[323153041,1713727832395,-507.43868763,0.00012699,2]
[323153043,1713727837670,-716.1727023,0.00012699,2]
[323153060,1713727837835,-3644.91864498,0.00012699,2]
[323153061,1713727837890,-20136.5917547,0.00012699,2]
[323153062,1713727838002,-498755.77340397,0.00012699,2]
[323153064,1713727838011,-70747.40199192,0.000127,4]
[323153065,1713727838021,-1080020.95743965,0.000127,4]
[323153066,1713727838030,-167.7,0.00012705,2]
[323153067,1713727838039,-523.33504995,0.00012795,2]
[323153068,1713727838049,-3449.11319741,0.00012795,2]
[323153069,1713727838058,-397.30984825,0.00012795,2]
[323153070,1713727838067,-194.35396704,0.00012795,2]
[323153071,1713727838076,-91947.4474,0.00012798,2]
[323153072,1713727838085,-563.6279,0.00012798,2]
[323153073,1713727838095,-3599.7683,0.00012798,2]
[323153074,1713727838104,-79232.25686936,0.000128,3]
[323153075,1713727838113,-499.99,0.00012831,2]
[323153076,1713727838122,-192.70495298,0.00012897,2]
[323153077,1713727838131,-245000.0,0.00012899,2]
[323153078,1713727838140,-11736.50518565,0.000129,2]
[323153079,1713727838151,-10000.0,0.000129,2]
[323153080,1713727838160,-487.69669718,0.000129,2]
[323153081,1713727838169,-487.69669714,0.000129,2]
[323153082,1713727838178,-487.69669714,0.000129,2]
[323153083,1713727838187,-487.69669714,0.000129,2]
[323153084,1713727838196,-487.69669714,0.000129,2]
[323153085,1713727838205,-487.69669714,0.000129,2]
[323153086,1713727838215,-487.69669714,0.000129,2]
[323153087,1713727838224,-7524.71943962,0.00012905,2]
[323153088,1713727838233,-487.69669714,0.00012914,2]
[323153089,1713727838242,-331.87403042,0.00012914,2]
[323153090,1713727838252,-4581.21114034,0.00012987,2]
[323153091,1713727838261,-426.98655778,0.00012992,2]
[323153092,1713727838270,-780.96848373,0.00012998,2]
[323153093,1713727838279,-2998.8492905,0.00012999,2]
[323153094,1713727838288,-1350.93200741,0.00012999,2]
[323153095,1713727838298,-7193863.91555559,0.00013,2]
[323153096,1713727838309,-1266577.43715545,0.00013,2]
[323153098,1713727839993,-484.23808323,0.00013,2]
[323153099,1713727840004,-4395.75536144,0.00013,2]
[323153100,1713727840084,1747.52711631,0.0001,2]
[323153101,1713727840123,-687.549999,0.00013,2]
[323153102,1713727840134,-3239.6100593,0.00013,2]
[323153103,1713727840166,-63763.68240538,0.00013,2]
[323153105,1713727840297,-4094.06756877,0.00013,2]
[323153106,1713727840357,-521.39700002,0.00013,2]
[323153107,1713727840368,-2503.73914955,0.00013,2]
[323153108,1713727840425,-150.0,0.00012151,2]
[323153109,1713727840434,-588.34666834,0.00013,2]
[323153123,1713727842852,-487.90208514,0.00013,2]
[323153124,1713727842913,-1568.36907027,0.00013,2]
[323153125,1713727842925,-363433.30163604,0.00013,2]
[323153126,1713727843077,-20560.61069053,0.00013,2]
[323153148,1713727846153,-500.0,0.00013,2]
[323153149,1713727846165,-18922.22876309,0.00013,2]
[323153150,1713727863894,1747.52711631,0.0001,2]
[323153151,1713727871500,236.64,0.0001611,10]
[323153152,1713727881898,1747.52711631,0.0001,2]
[323153153,1713727901922,1747.52711631,0.0001,2]
[323153154,1713727919908,1747.52711631,0.0001,2]
[323153155,1713727935912,1747.52711631,0.0001,2]
[323153156,1713727960640,1308.12970313,0.0001,2]
[323153157,1713727966578,5304.6116,0.00011923,2]
[323153161,1713728360791,824.43,0.00010168,2]
[323153162,1713728387889,153.75,0.00011849,2]
[323153163,1713728398823,490.5858,0.00011955,2]
[323153164,1713728462410,221.85,0.0001611,10]
[323153165,1713728627262,299.83,0.00011627,3]
[323153166,1713728669265,167.78,0.00011794,2]